Cogmind - Beta 16.1 @@@ ROGUE MODE // 2026.04.08 @ 15:55:37 Player: Maelyn Result: Destroyed by P-60 Hacker with Shock Rifle Performance ------------- Evolutions (4) 2000 Regions Visited (9) 1800 Robots Destroyed (49) 245 Value Destroyed (899) 899 Prototype IDs (3) 60 Alien Tech Used (0) 0 Bonus (42) 42 TOTAL SCORE: 5046 Bonus ------- Follower Combat Kills 42 Cogmind --------- Core Integrity 0/850 Matter 225/300 Energy 62/100 System Corruption 7% Temperature Cool (0) Movement Core (50) Location -6/Factory Parts ------- > --- POWER (1) -------- (None) > --- PROPULSION (4) --- (None) > --- UTILITY (7) ------ (None) > --- WEAPON (3) ------- (None) > --- INVENTORY (5) ---- Fusion Compressor Fusion Compressor Advanced Visual Processing Unit Core Analyzer Recalibrator Peak State ------------ > --- POWER ------------ Deuterium Engine > --- PROPULSION ------- Aerolev Unit Gravmag System Cooled Airjet Combat Airjet > --- UTILITY ---------- Large Storage Unit High-capacity Battery Advanced Visual Processing Unit Improved Sensor Array ECM Suite Improved Medium Armor Plating System Shield > --- WEAPON ----------- Heavy EM Shotgun Arc Projector Plasma Rifle > --- INVENTORY -------- Fusion Compressor Fusion Compressor Airjet Cooled Airjet Improved Gravmag System Advanced Visual Processing Unit Advanced Visual Processing Unit Advanced Visual Processing Unit Advanced Targeting Computer Core Analyzer Focal Shield Force Field Recalibrator Pulse Rifle Remote Datajack [Rating: 56] Favorites ----------- Power Light Ion Engine Engine Light Ion Engine Power Core Light Nuclear Core Propulsion VSS Leg Leg VSS Leg Wheel Wheel Hover Unit Cooled Airjet Utility Large Storage Unit Device Improved Sensor Array Storage Large Storage Unit Processor Advanced Visual Processing Unit Hackware System Shield Protection Power Shielding Weapon Light Assault Rifle Energy Gun Pulse Rifle Ballistic Gun Light Assault Rifle Special Weapon Mining Laser Slashing Weapon Ripper Special Melee Weapon Improved Datajack Build | -11 -10 -10 -9 -9 -9 -8 -8 -7 -6 ------- Run | Yrd Mat Min Mat Min Exi Min Mat Fac Fac Slots Evolved 8 | . . . 2 . . . 2 2 2 Power . | . . . . . . . . . . Propulsion 2 | . . . . . . . . 1 1 Utility 5 | . . . 2 . . . 1 1 1 Weapon 1 | . . . . . . . 1 . . Parts Attached 69 | 6 7 4 9 3 . 11 8 7 14 Power 9 | 1 2 . . 1 . 2 1 1 1 Engine 7 | 1 2 . . 1 . 1 1 1 . Core 2 | . . . . . . 1 . . 1 Reactor . | . . . . . . . . . . Propulsion 20 | 2 2 2 2 . . 2 2 3 5 Treads . | . . . . . . . . . . Leg 8 | . 2 2 2 . . 2 . . . Wheel 2 | 2 . . . . . . . . . Hover 10 | . . . . . . . 2 3 5 Flight . | . . . . . . . . . . Utility 20 | 1 2 . 4 1 . 3 2 3 4 Device 6 | . . . 1 . . 1 . 2 2 Storage 5 | 1 1 . 1 . . 2 . . . Processor 5 | . 1 . 1 1 . . . 1 1 Hackware 1 | . . . . . . . 1 . . Protection 3 | . . . 1 . . . 1 . 1 Artifact . | . . . . . . . . . . Weapon 20 | 2 1 2 3 1 . 4 3 . 4 Energy Gun 7 | . . . 2 . . 2 . . 3 Energy Cannon . | . . . . . . . . . . Ballistic Gun 9 | 2 1 . 1 1 . 2 2 . . Ballistic Cannon . | . . . . . . . . . . Launcher . | . . . . . . . . . . Special Weapon 2 | . . 1 . . . . . . 1 Impact Weapon . | . . . . . . . . . . Slashing Weapon 1 | . . 1 . . . . . . . Piercing Weapon . | . . . . . . . . . . Special Melee Weapon 1 | . . . . . . . 1 . . Unidentified Prototypes 3 | . . . . . . . 1 1 1 Parts Lost 30 | . 3 1 . 1 . 8 4 1 12 Power 6 | . 1 . . 1 . 1 2 . 1 Propulsion 7 | . 2 . . . . 2 . . 3 Utility 7 | . . . . . . 2 1 . 4 Weapon 10 | . . 1 . . . 3 1 1 4 Highest Loss Streak 7 | . 3 1 . 1 . 7 2 1 4 To Critical Strikes . | . . . . . . . . . . Average Backups 11 | 2 5 9 13 13 14 9 11 9 12 Power 1 | . . . . . 2 2 2 . 1 Propulsion 2 | 2 3 4 3 2 2 . 2 2 2 Utility 4 | . . 1 5 5 6 5 4 4 7 Weapon 2 | . 1 3 5 5 4 2 1 2 . Tool/Special . | . . . . . . . . . . Unused Backups 13 | . 1 . 4 . . . 1 . 7 Power 2 | . . . . . . . 1 . 1 Propulsion 3 | . . . 3 . . . . . . Utility 5 | . . . . . . . . . 5 Weapon 3 | . 1 . 1 . . . . . 1 Tool/Special . | . . . . . . . . . . Average Slot Usage (%) 94 | . 84 99 94 99 100 96 88 96 90 Engine 9 | . 14 14 11 10 11 9 2 6 5 Leg 16 | . 17 28 22 22 22 21 2 . . Hover 6 | . . . . . . . 15 23 22 Device 4 | . . . . . . 9 6 9 12 Storage 14 | . 14 14 20 13 11 20 18 15 12 Processor 12 | . . 14 11 19 22 12 9 10 7 Hackware 1 | . . . . . . . 3 7 5 Protection 4 | . . . 6 11 11 . 4 . 4 Energy Gun 5 | . . . 3 11 11 1 3 . 12 Ballistic Gun 12 | . 28 12 16 11 11 19 9 15 1 Special Weapon 1 | . . 5 . . . . . . 1 Slashing Weapon 1 | . . 9 1 . . . . . . Peak Build Rating 56 | 6 8 12 24 22 20 20 30 41 56 Average Rating 23 | 3 6 10 19 20 20 17 27 38 49 On Entrance 17 | . 6 8 12 22 20 20 19 28 36 Avg Prop Armor Cover (%) 2 | . . . . . . . . . 2 Naked Turns 1 | . . . . . . . . . 1 Heaviest Build 54 | 10 32 29 33 29 28 30 34 40 54 Greatest Support 38 | 26 26 20 30 24 24 24 24 24 38 Greatest Overweight (x) 7 | . 3 1 1 1 1 2 2 1 7 Average Overweight (x) . | . . 1 . 1 1 1 1 1 . Largest Inventory Capacity 15 | 8 15 15 15 15 15 15 15 15 15 Average Capacity 14 | 7 9 15 15 15 15 15 15 15 14 Most Carried 15 | 5 8 12 15 15 15 15 14 12 15 Average Carried 11 | 2 5 9 13 13 14 9 11 9 12 Final Capacity 15 | 8 15 15 15 15 15 15 15 15 5 Final Carried 15 | 3 7 11 14 13 15 10 12 12 5 Class Distribution -------------------- 88% | Mutant 11% | Skirmisher Dominant Class ---------------- Mutant | -10/Materials Mutant | -10/Mines Mutant | -9/Materials Mutant | -9/Mines Mutant | -9/Exiles Mutant | -8/Mines Mutant | -8/Materials Mutant | -7/Factory Skirmisher | -6/Factory Resources | -11 -10 -10 -9 -9 -9 -8 -8 -7 -6 ----------- Run | Yrd Mat Min Mat Min Exi Min Mat Fac Fac Matter Collected 875 | 103 170 165 173 28 . 120 11 . 105 Remotely . | . . . . . . . . . . Salvage Created 1403 | . 210 255 248 87 . 156 158 . 289 Parts 103 | . 15 17 21 17 . 9 7 . 17 Haulers Intercepted 3 | . 1 . 2 . . . . . . Recyclers Shooed 4 | . 1 1 . . . . . . 2 Parts Field Recycled . | . . . . . . . . . . Retrieved Matter . | . . . . . . . . . . Parts Self-Destructed . | . . . . . . . . . . Prevented . | . . . . . . . . . . Parts Restored . | . . . . . . . . . . Kills | -11 -10 -10 -9 -9 -9 -8 -8 -7 -6 ------- Run | Yrd Mat Min Mat Min Exi Min Mat Fac Fac Combat Hostiles Destroyed 31 | . 4 4 4 6 . 5 4 . 4 Melee 3 | . . 3 . . . . . . . Guns 28 | . 4 1 4 6 . 5 4 . 4 Classes Destroyed 9 | . 5 2 1 . . 1 . . . Worker 5 | . . 2 1 . . . . . 2 Builder 4 | . 1 1 . 1 . . . . 1 Hauler 3 | . 1 . 2 . . . . . . Recycler 2 | . . 2 . . . . . . . Watcher 4 | . 1 . 1 . . . . . 2 Swarmer 19 | . 2 3 2 6 . 2 1 . 3 Grunt 7 | . 2 1 . . . 2 1 . 1 Duelist 1 | . . . . . . 1 . . . Sentry 4 | . . . 2 . . . 2 . . Best Kill Streak 7 | . 2 7 5 3 . 3 4 . 4 Combat Bots Only 4 | . 2 3 4 3 . 3 4 . 3 Max Kills in Single Turn 1 | . 1 1 1 1 . 1 1 . 1 Gunslinging . | . . . . . . . . . . Exploded . | . . . . . . . . . . Melee 1 | . . 1 . . . . . . . Uniques/NPCs Destroyed . | . . . . . . . . . . Combat | -11 -10 -10 -9 -9 -9 -8 -8 -7 -6 -------- Run | Yrd Mat Min Mat Min Exi Min Mat Fac Fac Hostile Shots Fired 494 | . 42 33 27 23 . 95 80 15 179 Missed 170 | . 13 8 5 6 . 28 30 8 72 Hits 324 | . 29 25 22 17 . 67 50 7 107 Melee 28 | . . . . . . 8 . . 20 Projectile 296 | . 29 25 22 17 . 59 50 7 87 AOE 1 | . . . . . . . . . 1 Critical Strikes 20 | . 1 . 1 . . 2 1 . 15 Actively Blocked 2 | . . . 1 . . . 1 . . Damage Taken 4602 | . 357 232 236 146 . 923 600 128 1980 Core 1412 | . 33 49 61 50 . 233 111 14 861 Absorbed by Shields 29 | . . . . . . . . . 29 Redirected to Shielding 87 | . . . 8 7 . 19 53 . . Ignored by Resistances 4 | . . . . . . . . . 4 Core Remaining (%) 71 | 100 . 67 . . . 14 79 98 . Volleys Fired 159 | . 31 17 17 12 . 25 19 2 36 Largest 3 | . 2 1 2 2 . 2 2 2 3 Hottest 193 | . 40 100 126 83 . 126 83 45 193 Shots Fired 281 | . 62 17 34 24 . 45 28 4 67 Gun 274 | . 62 16 34 24 . 45 28 4 61 Cannon . | . . . . . . . . . . Launcher . | . . . . . . . . . . Special 7 | . . 1 . . . . . . 6 Kinetic 147 | . 62 16 12 12 . 32 9 4 . Thermal 105 | . . 1 22 12 . 13 19 . 38 Explosive . | . . . . . . . . . . Electromagnetic 23 | . . . . . . . . . 23 Robot Hit Streak 14 | . 14 5 6 3 . 11 12 5 8 Robot Miss Streak 6 | . 2 2 1 4 . 1 1 2 6 Penetration Max . | . . . . . . . . . . Secondary Targets 5 | . . . 1 2 . 1 . . 1 Max Gunslinging Chain 1 | . . . 1 1 . 1 . . 1 Shots Hit Robots 192 | . 44 18 24 10 . 39 23 3 31 Core Hits 88 | . 17 10 14 7 . 12 9 1 18 Critical Kills . | . . . . . . . . . . Critical Parts Destroyed . | . . . . . . . . . . Critical Strikes 4 | . . . 2 . . . 1 . 1 Burn 4 | . . . 2 . . . 1 . 1 Melee Attacks 9 | . . 9 . . . . . . . Impact . | . . . . . . . . . . Slashing 9 | . . 9 . . . . . . . Piercing . | . . . . . . . . . . Sneak Attacks 4 | . . 4 . . . . . . . Combat Hostiles . | . . . . . . . . . . Follow-up Attacks . | . . . . . . . . . . Damage Inflicted 2849 | . 370 517 329 150 . 410 329 32 712 Guns 2411 | . 370 93 329 150 . 410 329 32 698 Cannons . | . . . . . . . . . . Explosions . | . . . . . . . . . . Melee 424 | . . 424 . . . . . . . Ramming 14 | . . . . . . . . . 14 Kinetic 885 | . 370 93 72 28 . 226 64 32 . Thermal 1275 | . . . 257 122 . 184 265 . 447 Explosive . | . . . . . . . . . . Electromagnetic 251 | . . . . . . . . . 251 Impact . | . . . . . . . . . . Slashing 424 | . . 424 . . . . . . . Piercing . | . . . . . . . . . . Highest Corruption 6 | . . . . . . . . . 6 Average Corruption 4 | . . . . . . . . . 4 Corruption Purged . | . . . . . . . . . . Corruption Blocked . | . . . . . . . . . . Effects 5 | . . . . . . . . . 5 Message Errors 3 | . . . . . . . . . 3 Data Loss (minor) 2 | . . . . . . . . . 2 Overload Shots . | . . . . . . . . . . Overflow Damage 29 | . . 29 . . . . . . . Projectiles . | . . . . . . . . . . Explosions . | . . . . . . . . . . Melee 29 | . . 29 . . . . . . . Knockbacks . | . . . . . . . . . . Impact . | . . . . . . . . . . Kinetic . | . . . . . . . . . . Secondary . | . . . . . . . . . . Self-Inflicted Damage 7 | . . . . . . . . . 7 Shots . | . . . . . . . . . . Rammed 1 | . . . . . . . . . 1 Targets Rammed 1 | . . . . . . . . . 1 Kicked . | . . . . . . . . . . Crushed . | . . . . . . . . . . Highest Temperature 702 | . 25 20 480 111 . 164 196 . 702 Average Temperature 137 | . 12 7 248 49 . 48 58 . 203 Received Heat Transfer 1015 | . 165 78 9 . . 288 189 63 223 Effects 28 | . . . 4 . . . . . 24 Shutdowns 4 | . . . 1 . . . . . 3 Energy Bleed 3 | . . . . . . . . . 3 Interference 8 | . . . 2 . . . . . 6 Matter Decay 1 | . . . 1 . . . . . . Short Circuit 1 | . . . . . . . . . 1 Damage (minor) 3 | . . . . . . . . . 3 Damage (major) 6 | . . . . . . . . . 6 Damage (core) 2 | . . . . . . . . . 2 Siege Activations . | . . . . . . . . . . Martial Activations . | . . . . . . . . . . Shielding Activations . | . . . . . . . . . . Robots Disrupted . | . . . . . . . . . . Combat Hostiles . | . . . . . . . . . . Robots Corrupted . | . . . . . . . . . . Combat Hostiles . | . . . . . . . . . . Parts Fried . | . . . . . . . . . . Impact Corruptions . | . . . . . . . . . . Robots Melted . | . . . . . . . . . . Combat Hostiles . | . . . . . . . . . . Parts Melted 6 | . . . 1 1 . 1 . . 3 Heat Transferred 3105 | . . . 703 259 . 407 666 . 1070 Parts Sabotaged . | . . . . . . . . . . Parts Stolen . | . . . . . . . . . . Parts Stripped . | . . . . . . . . . . Power Chain Reactions . | . . . . . . . . . . Alert | -11 -10 -10 -9 -9 -9 -8 -8 -7 -6 ------- Run | Yrd Mat Min Mat Min Exi Min Mat Fac Fac Maximum Alert Level . | . . . . . . . . . . Low Security (%) 100 | 100 100 100 100 100 . 100 100 100 100 Level 1 . | . . . . . . . . . . Level 2 . | . . . . . . . . . . Level 3 . | . . . . . . . . . . Level 4 . | . . . . . . . . . . Level 5 . | . . . . . . . . . . High Security . | . . . . . . . . . . Max Security . | . . . . . . . . . . Peak Influence 108 | . 55 95 103 108 . 60 61 . 81 Initial 33 | . . . . 33 . . 1 . . Average 18 | . 12 23 14 76 . 10 13 . 17 Influence Increases 1102 | . 124 165 158 145 . 140 101 . 269 Destroy 0b10 Robot/C 660 | . 80 100 100 120 . 100 80 . 80 Destroy 0b10 Robot/NC 90 | . 15 25 20 5 . . . . 25 Destroy Leader 134 | . 14 20 36 20 . 10 20 . 14 Allied During Kill 6 | . . 4 2 . . . . . . Destroy Structure 2 | . . 1 . . . . 1 . . Lose Combat Pursuer 210 | . 15 15 . . . 30 . . 150 Influence Decreases 1070 | . 124 165 71 164 68 136 105 . 237 Entered New Map 125 | . . . . 54 68 . 3 . . Time Decay 739 | . 94 164 46 100 . 116 62 . 157 Lost Part 181 | . 30 1 . 10 . 20 40 . 80 Lost Ally 25 | . . . 25 . . . . . . Squads Dispatched 7 | . . . . . . . . 1 6 Investigation . | . . . . . . . . . . Extermination 1 | . . . . . . . . . 1 Reinforcement 6 | . . . . . . . . 1 5 Assault . | . . . . . . . . . . Garrison . | . . . . . . . . . . Intercept . | . . . . . . . . . . Searches Triggered . | . . . . . . . . . . Construction Impeded . | . . . . . . . . . . Haulers Reinforced 1 | . . . . . . . . . 1 Active Scanning Responses . | . . . . . . . . . . Cargo Convoy Interrupts . | . . . . . . . . . . Stealth | -11 -10 -10 -9 -9 -9 -8 -8 -7 -6 --------- Run | Yrd Mat Min Mat Min Exi Min Mat Fac Fac Distress Signals 4 | . . . 3 . . . 1 . . Communications Jammed . | . . . . . . . . . . Distress Signals . | . . . . . . . . . . Times Spotted 88 | . 11 5 8 6 . 8 12 10 28 Peak Tracking Total 7 | . 6 3 2 3 . 6 7 3 7 Tactical Retreats 11 | . 1 1 . . . 1 . 2 6 ECM-based Alert Blocks 10 | . . . . . . . . 6 4 Traps | -11 -10 -10 -9 -9 -9 -8 -8 -7 -6 ------- Run | Yrd Mat Min Mat Min Exi Min Mat Fac Fac Traps Triggered 6 | . . . 2 . . . . 1 3 Indirectly . | . . . . . . . . . . Trap Hack Attempts . | . . . . . . . . . . Triggered . | . . . . . . . . . . Disarmed . | . . . . . . . . . . Reprogrammed . | . . . . . . . . . . Reused . | . . . . . . . . . . Traps Extracted . | . . . . . . . . . . Installed . | . . . . . . . . . . Triggered . | . . . . . . . . . . Machines | -11 -10 -10 -9 -9 -9 -8 -8 -7 -6 ---------- Run | Yrd Mat Min Mat Min Exi Min Mat Fac Fac Machines Disabled . | . . . . . . . . . . Max in Single Turn . | . . . . . . . . . . Machines Repaired . | . . . . . . . . . . Machines Dismantled . | . . . . . . . . . . Machines Sabotaged . | . . . . . . . . . . Overloaded Fab Kills . | . . . . . . . . . . Hacking | -11 -10 -10 -9 -9 -9 -8 -8 -7 -6 --------- Run | Yrd Mat Min Mat Min Exi Min Mat Fac Fac Machines Accessed . | . . . . . . . . . . Terminals . | . . . . . . . . . . Fabricators . | . . . . . . . . . . Repair Stations . | . . . . . . . . . . Recycling Units . | . . . . . . . . . . Scanalyzers . | . . . . . . . . . . Garrison Access . | . . . . . . . . . . Total Hacks . | . . . . . . . . . . Successful . | . . . . . . . . . . Failed . | . . . . . . . . . . Catastrophic . | . . . . . . . . . . Database Lockouts . | . . . . . . . . . . Manual . | . . . . . . . . . . Terminals . | . . . . . . . . . . Fabricators . | . . . . . . . . . . Repair Stations . | . . . . . . . . . . Recycling Units . | . . . . . . . . . . Scanalyzers . | . . . . . . . . . . Garrison Access . | . . . . . . . . . . Terminal Hacks . | . . . . . . . . . . Fabricator Hacks . | . . . . . . . . . . Repair Station Hacks . | . . . . . . . . . . Recycling Unit Hacks . | . . . . . . . . . . Scanalyzer . | . . . . . . . . . . Garrison Access Hacks . | . . . . . . . . . . Unauthorized Hacks . | . . . . . . . . . . Terminals . | . . . . . . . . . . Fabricators . | . . . . . . . . . . Repair Stations . | . . . . . . . . . . Recycling Units . | . . . . . . . . . . Scanalyzers . | . . . . . . . . . . Garrison Access . | . . . . . . . . . . Data Cores Recovered . | . . . . . . . . . . Used . | . . . . . . . . . . Hacking Detections . | . . . . . . . . . . Full Trace Events . | . . . . . . . . . . Feedback Events . | . . . . . . . . . . Feedback Blocked . | . . . . . . . . . . Robot Schematics Acquired . | . . . . . . . . . . Robots Built . | . . . . . . . . . . Authchips . | . . . . . . . . . . Time . | . . . . . . . . . . Total Robot Build Rating . | . . . . . . . . . . Part Schematics Acquired . | . . . . . . . . . . Parts Built . | . . . . . . . . . . Authchips . | . . . . . . . . . . Time . | . . . . . . . . . . Total Part Build Rating . | . . . . . . . . . . Part Studies Acquired . | . . . . . . . . . . Parts Repaired . | . . . . . . . . . . Time . | . . . . . . . . . . Parts Recycled . | . . . . . . . . . . Recycled Matter . | . . . . . . . . . . Retrieved Matter . | . . . . . . . . . . Retrieved Components . | . . . . . . . . . . Parts Scanalyzed . | . . . . . . . . . . Part Schematics Acquired . | . . . . . . . . . . Parts Damaged . | . . . . . . . . . . Bothacking | -11 -10 -10 -9 -9 -9 -8 -8 -7 -6 ------------ Run | Yrd Mat Min Mat Min Exi Min Mat Fac Fac Used RIF Installer . | . . . . . . . . . . Robots Hacked 4 | . . . . . . . . . 4 Non-combat 2 | . . . . . . . . . 2 Combat 2 | . . . . . . . . . 2 Robot Hacks Applied 4 | . . . . . . . . . 4 parse_system 2 | . . . . . . . . . 2 no_distress 1 | . . . . . . . . . 1 find_dsf 1 | . . . . . . . . . 1 Relay Couplers Released . | . . . . . . . . . . Fabnet Peak Effective % . | . . . . . . . . . . Robots Rewired . | . . . . . . . . . . Allies Hacked . | . . . . . . . . . . Hacks Repelled . | . . . . . . . . . . Allies | -11 -10 -10 -9 -9 -9 -8 -8 -7 -6 -------- Run | Yrd Mat Min Mat Min Exi Min Mat Fac Fac Total Allies 4 | . . 4 . . . . . . . Largest Group 3 | . . 3 2 . . . . . . Highest-Rated Group 40 | . . 40 32 . . . . . . Highest-Rated Ally 31 | . . 31 16 . . . . . . Total Orders . | . . . . . . . . . . Ally Attacks 12 | . . 7 5 . . . . . . Total Damage 137 | . . 88 49 . . . . . . Kills 3 | . . 2 1 . . . . . . Allies Corrupted . | . . . . . . . . . . Allies Melted . | . . . . . . . . . . Intel | -11 -10 -10 -9 -9 -9 -8 -8 -7 -6 ------- Run | Yrd Mat Min Mat Min Exi Min Mat Fac Fac Active Infowar (turns) 4336 | . 20 808 425 143 956 533 320 282 849 Optics 4220 | . 20 808 425 143 956 533 320 282 733 Sensors 1007 | . . . . . . . . 255 752 Terrain 583 | . . . . . . 465 118 . . ECM 658 | . . . . . . . . 123 535 Robot Analysis Total . | . . . . . . . . . . Derelict Logs Recovered 1 | . . 1 . . . . . . . Drone Launches . | . . . . . . . . . . Drone Recoveries . | . . . . . . . . . . Exploration | -11 -10 -10 -9 -9 -9 -8 -8 -7 -6 ------------- Run | Yrd Mat Min Mat Min Exi Min Mat Fac Fac Turns Passed 4944 | 55 446 808 473 219 956 533 320 282 852 Spaces Moved 3047 | 53 280 390 230 98 530 250 213 254 749 Core 23 | 16 4 . . . . . . . 3 Treads . | . . . . . . . . . . Legs 1672 | . 159 390 230 98 530 250 15 . . Wheels 154 | 37 117 . . . . . . . . Hover 1198 | . . . . . . . 198 254 746 Flight . | . . . . . . . . . . Fastest Speed 48 | 50 90 190 90 180 180 180 106 102 48 Average Speed 140 | 77 123 190 170 180 180 180 112 102 89 Slowest Speed 400 | 90 200 190 190 180 180 270 180 102 400 Overloaded Moves . | . . . . . . . . . . Propulsion Burnouts . | . . . . . . . . . . Robots Hopped . | . . . . . . . . . . Potential Cave-ins . | . . . . . . . . . . Cave-ins Triggered . | . . . . . . . . . . Exploration Rate (%) 33 | 3 52 79 31 16 72 41 19 8 13 Regions Visited 9 Branch Regions 4 Pre-discovered Areas . | . . . . . . . . . . Known Exits Taken 2 | . . . 1 . . 1 . . . Unknown Exits Taken 7 | 1 1 1 . 1 1 . 1 1 . Scrap Searched 1 | . . 1 . . . . . . . Spaces Dug . | . . . . . . . . . . Terrain Destroyed 1 | . . 1 . . . . . . . Melee . | . . . . . . . . . . Projectile 1 | . . 1 . . . . . . . AOE . | . . . . . . . . . . Terrain Rammed . | . . . . . . . . . . Walls Destroyed . | . . . . . . . . . . Machines Disabled . | . . . . . . . . . . Actions | -11 -10 -10 -9 -9 -9 -8 -8 -7 -6 --------- Run | Yrd Mat Min Mat Min Exi Min Mat Fac Fac Total 3467 | 65 331 427 280 121 532 292 269 273 877 Wait 25 | . . . . . . 3 11 . 11 Move 3038 | 52 279 389 229 97 529 249 212 253 749 Hop . | . . . . . . . . . . Pick Up 77 | 7 11 6 13 4 2 3 12 7 12 Fast Attach 5 | 2 . . 3 . . . . . . Attach 46 | 4 5 1 2 1 . 8 7 5 13 Detach 1 | . . . . . . . . 1 . Swap 31 | . 2 4 6 2 . 4 3 3 7 Drop 35 | . 3 1 10 5 . . 5 2 9 Fire 159 | . 31 17 17 12 . 25 19 2 36 Melee 9 | . . 9 . . . . . . . Ram 1 | . . . . . . . . . 1 Kick . | . . . . . . . . . . Crush . | . . . . . . . . . . Escape Stasis 39 | . . . . . . . . . 39 Rewire 1 | . . . . . 1 . . . . Trap . | . . . . . . . . . . Miscellaneous . | . . . . . . . . . . Route ------- -11/Scrapyard -10/Materials -10/Mines (discovered 3 exits: [*Mat x2] / [*Sub]) -9/Materials (discovered 2 exits: Mat / *Min) -9/Mines (discovered 2 exits: *Mat / [*Exi]) -9/Exiles (discovered 2 exits: [*Min x2]) -8/Mines -8/Materials -7/Factory -6/Factory History --------- Turn | Location | Event 4 | -11/Scrapyard | Discovered new exit (range 16) 56 | -11/Scrapyard | Entered Materials 233 | -10/Materials | Lost 3 parts (1p2n) 270 | -10/Materials | Discovered new exit (range 16) 316 | -10/Materials | Build established: Mutant 502 | -10/Materials | Entered Mines 505 | -10/Mines | Received a Mining Laser from a helpful Derelict 597 | -10/Mines | YI-UF0 nonchalantly dropped a Grenade Launcher on the ground 746 | -10/Mines | A weapon hastily lodged in a ceiling crevice suddenly fell to the ground 840 | -10/Mines | Discovered new exit (range 7) 976 | -10/Mines | Discovered new exit (range 8) 995 | -10/Mines | Assisted by bots powering up and referring to "LRC-V3" 1027 | -10/Mines | Learned location of 2 exits from Materials 1099 | -10/Mines | Discovered new exit (range 9) 1310 | -10/Mines | Entered Materials 1310 | -9/Materials | Accompanied by 2 allies 1310 | -9/Materials | Evolved 2 slots: Utility x2 1311 | -9/Materials | Identified exit to Mines 1311 | -9/Materials | Identified exit to Materials 1783 | -9/Materials | Entered Mines 1850 | -9/Mines | Discovered exit to Materials (range 12) 1912 | -9/Mines | Assembled infested the area 1917 | -9/Mines | Assisted by a Guerilla fighting off Assembled 1993 | -9/Mines | Deemed a non-threat by the Exiles lab entrance 1994 | -9/Mines | Discovered new exit (range 5) 2002 | -9/Mines | Entered Exiles 2026 | -9/Exiles | Discovered new exit (range 19) 2047 | -9/Exiles | Met 8R-AWN 2078 | -9/Exiles | Met EX-HEX 2136 | -9/Exiles | Met EX-DEC 2321 | -9/Exiles | Discovered new exit (range 12) 2442 | -9/Exiles | Met EX-BIN 2958 | -9/Exiles | Entered Mines 2983 | -8/Mines | Core integrity fell below 50% 2998 | -8/Mines | Core integrity fell below 20% 3030 | -8/Mines | Lost 7 parts (1p2n2u2w) 3368 | -8/Mines | Discovered exit to Materials (range 12) 3491 | -8/Mines | Entered Materials 3491 | -8/Materials | Evolved 2 slots: Utility x1, Weapon x1 3809 | -8/Materials | Discovered new exit (range 3) 3811 | -8/Materials | Entered Factory 3811 | -7/Factory | Evolved 2 slots: Propulsion x1, Utility x1 4078 | -7/Factory | Discovered new exit (range 5) 4093 | -7/Factory | Entered another Factory area 4093 | -6/Factory | Evolved 2 slots: Propulsion x1, Utility x1 4403 | -6/Factory | Build established: Skirmisher 4766 | -6/Factory | Core integrity fell below 50% 4797 | -6/Factory | Lost 4 parts (2u2w) 4883 | -6/Factory | Lost 3 parts (1p1n1u) 4937 | -6/Factory | Core integrity fell below 20% 4945 | -6/Factory | Destroyed by P-60 Hacker with Shock Rifle Last Messages --------------- misinterpreted. 04885_ P-60 Hacker triggered Stasis Trap. 04885_ A bubble of rippling energy engulfs the area. 04885_ Field strength at 93. 04885_ Slammed into A-15 Conveyor. 04900_ AF&E/A3%BSVLDZP|MWJOPOUYLDMV I4FE2A#BJQ 04917_ Force Field severed. 04919_ Remote Datajack destroyed. 04923_ Focal Shield severed. 04926_ ALERT: Suspicious intruders detected, dispatching Specialist reinforcements to area. 04931_ K-01 Serf cleans the Terminal. 04932_ Aerolev Unit severed. 04934_ Gravmag Array destroyed. 04936_ Hcp. Battery severed. 04939_ System Shield severed. 04942_ Adv. Targeting Computer severed. 04942_ Adv. Visual Processing Unit severed. 04944_ Lrg. Storage Unit destroyed. Map ----- +----------------------------------------------------+ | ####### #??????????????????????????????? | | + ##############?????????????????? | | ############# ! # #?????????????????? | | #???????????# # #?????????????????? | | #??############### #?????????????????? | | #??# #???# """ """ #?????????????????? | | #??# """ """ ##### """ """ #?????????????????? | | #??# """ """ # + """ """ #?????????????????? | | #??# """ """ #???# #?????????????????? | | #??# #???# !""" """ #?????????????????? | | #??# #???#! """ """ #?????????????????? | | #??# #???# """ """ #?????????????????? | | #??# #???# #?????????????????? | | #??#####+#####???# #?????????????????? | | ##### #????#######p#############??????????? | | ########## ! + ?????? | | u # """"" """??????????? | | T # """"" """??????????? | | + """ """??????????? | | ########## # ???????? | | ##+### #????????# = # """"" """"" ???????? | | #########????????# # """"" """"?????????? | | ##############???# # """ """??????????? | | # #???#cc # ???????????? | | # #???# ###########??????????? | | """ # #???# !@ ##############???????? | | """ # #???# # """ #???????? | | """ # #???# # "T" """ #???????? | | # #???# # " " """ =#???????? | | """ # #???# # """ #???????? | | """ # #???# Ag# #???????? | | """ # #???# R # """ """ #???????? | | + #???# + """ """ #???????? | | ###### #???# k # """ """ #???????? | | ?????# #???# # #???????? | | ?????######+########### # = #???????? | | ??????# A# #???????? | | ??????# g # = #???????? | | ??????# """ ##############???????? | | ??????# """ #????????????????????? | | ??????# ** """ #????????????????????? | | ?????#####+##### ** #????????????????????? | | ?????# # ** """ #################????? | | ?????# # """ ????? | | ?????# # """ ???? | | ?????# # ???? | | ?????# """ """ # ^ ??? | | ?????# """ """ + ???? | | ?????# """ """ ### ########### ############### | | ?????# #?# #?????????# # | +----------------------------------------------------+ Best States ------------- Heat Dissipation 37 Energy Generation 14 Energy Capacity 525 Matter Stores 450 Matter Capacity 450 Sight Range 20 Robot Scan Range 15 Terrain Scan Range 16 Terrain Scan Density 10 ECM Strength 1 Additional Mass Support 6 Armor Coverage 225 Resistance: KI 20 Power Shielding 33 Weapon Shielding 33 Evasion (%) 55 Targeting Accuracy 8 Melee Accuracy 6 Defensive Hacking 10 Item Schematics ----------------- None Robot Schematics ------------------ None Fabricated ------------ Nothing Repaired ---------- Nothing Studied --------- None Alien Tech Used ----------------- None Achievements -------------- None Challenges ------------ None Game ------ Seed WeldingSuspensionConstruct Manual? 0 Play Time 00:44:40 Cumulative 20.5 hours Start 2026.04.08 @ 15:13:24 End 2026.04.08 @ 15:55:37 Sessions 1 Manual Loads 0 Difficulty Rogue Special Mode None Game No. 57 Rogue 57 Adventurer 0 Explorer 0 Win Type - Total 0 Types 0/0/0/0/0/0/0/0/0/0 Lore% 10 Gallery% 20 Achievement% 12 Wizard Run 0 Options --------- Layout 2 ASCII 0 Keyboard 0 Movement Mouse Keybinds 0 Fullscreen 1 Font 24/Crisp Map View 50x44 Zoom Use 0% Tactical HUD 1 Map Filters NONE Filters NONE Steam 1 RUN: b3e43bf6-dccc-40f2-bf84-8b0839a947df